Cogmind - Beta 11.1 @@@ ROGUE MODE // 2022.05.21 @ 20:56:02 Player: CrossedViper Result: Destroyed by H-71 Marshal with Heavy Mass Driver Performance ------------- Evolutions (6) 3000 Regions Visited (23) 4600 Robots Destroyed (532) 2660 Value Destroyed (22950) 22950 Prototype IDs (64) 1280 Alien Tech Used (0) 0 Bonus (13949) 13949 TOTAL SCORE: 48439 Bonus ------- Triggered High Security 500 High Alert Combat Kills 5874 Follower Combat Kills 1971 Met Data Miner 300 Met Imprinter 300 Was Imprinted 300 Met Warlord at Base 500 MAIN.C Attacked Warlord 500 Warlord Defense Kills 7460 Friendly Fire -3756 Cogmind --------- Core Integrity 0/1150 Matter 46/300 Energy 85/100 System Corruption 35% Temperature Cool (0) Movement Core (50) Location -4/Factory Parts ------- > --- POWER (2) -------- (None) > --- PROPULSION (6) --- Improved VSS Leg > --- UTILITY (8) ------ Machine Analyzer Experimental Optical Array Experimental Targeting Computer Experimental Targeting Computer System Mapper > --- WEAPON (3) ------- (None) > --- INVENTORY (5) ---- Vortex Catalyst Activator Peak State ------------ > --- POWER ------------ Vortex Chain Reactor > --- PROPULSION ------- Enhanced Biometal Leg Enhanced Biometal Leg Experimental Myomer Leg Experimental Myomer Leg > --- UTILITY ---------- Experimental Heat Sink Huge Storage Unit Makeshift Salvage Targeting Computer Experimental Targeting Computer Experimental Core Analyzer Armor Integrity Analyzer Advanced Kinecellerator Centrium Medium Armor Plating > --- WEAPON ----------- Helical Railgun Helical Railgun RU-N14's Throwing Claymores v3 > --- INVENTORY -------- Improved Quantum Reactor Armored Medium Treads Enhanced Biometal Leg Improved Matter Compressor Transport Network Coupler Experimental Targeting Computer Experimental Core Analyzer Experimental Core Analyzer Experimental Phase Shifter Thermal Barrier System Mapper Experimental System Shield Helical Railgun Helical Railgun XL Autogun Array Vortex Catalyst Activator Plasma Cutter RU-N14's Throwing Claymores v3 RU-N14's Throwing Claymores v3 RU-N14's Throwing Claymores v3 Gravity Flail [Rating: 153] Favorites ----------- Power F-cell Engine Engine F-cell Engine Power Core Micro Nuclear Core Reactor Improved Quantum Reactor Propulsion Light Treads Treads Light Treads Leg Flexi-carbon Leg Wheel Centrium Wheel Hover Unit Aerolev Unit Flight Unit Cooled VTOL Module Utility Huge Storage Unit Device Transmission Jammer Storage Huge Storage Unit Processor Armor Integrity Analyzer Hackware System Mapper Protection Improved Medium Armor Plating Weapon Antimatter Cannon Energy Gun Zionite Laser-M Energy Cannon HERF Cannon Ballistic Gun Gauss Rifle Ballistic Cannon Antimatter Cannon Launcher Tiamat Missile Launcher Special Weapon RU-N14's Throwing Claymores v3 Impact Weapon Gravity Flail Slashing Weapon Great Axe Build | -11 -10 -10 -10 -9 -8 -7 -7 -7 -7 -6 -6 -6 -6 -6 -5 -5 -5 -5 -5 -4 -4 -4 -4 ------- Run | Scr Mat Min Exi Min Mat Fac Low Low Zio Pro Fac Low Low Dat Pro Fac Upp Upp War Pro Fac Was Fac Slots Evolved 12 | . . . . . 4 2 . . . . 2 . . . . 2 . . . . 2 . . Power 1 | . . . . . . . . . . . . . . . . 1 . . . . . . . Propulsion 4 | . . . . . 1 1 . . . . . . . . . . . . . . 2 . . Utility 6 | . . . . . 3 1 . . . . 2 . . . . . . . . . . . . Weapon 1 | . . . . . . . . . . . . . . . . 1 . . . . . . . Parts Attached 390 | 8 12 1 3 1 54 55 4 . 6 1 25 23 3 2 23 32 2 18 31 10 31 5 40 Power 35 | 1 1 . 1 . 5 2 . . . . 2 . . . 2 5 . 1 2 . 3 1 9 Engine 15 | 1 . . 1 . 5 1 . . . . 2 . . . 1 2 . . . . . . 2 Core 8 | . 1 . . . . 1 . . . . . . . . 1 3 . . . . 1 . 1 Reactor 12 | . . . . . . . . . . . . . . . . . . 1 2 . 2 1 6 Propulsion 106 | 2 3 . . . 17 21 . . . 1 3 9 1 . 10 5 . 4 9 1 11 1 8 Treads 75 | 2 2 . . . 17 19 . . . 1 2 5 1 . 5 . . 4 3 . 11 1 2 Leg 22 | . 1 . . . . . . . . . . 4 . . 5 5 . . 5 1 . . 1 Wheel 7 | . . . . . . . . . . . 1 . . . . . . . 1 . . . 5 Hover 1 | . . . . . . 1 . . . . . . . . . . . . . . . . . Flight 1 | . . . . . . 1 . . . . . . . . . . . . . . . . . Utility 112 | 3 3 . 1 1 15 13 1 . 4 . 12 10 . . 3 9 . 4 9 5 9 3 7 Device 42 | 2 . . . . 5 3 1 . 1 . 5 7 . . 1 2 . 1 5 2 4 1 2 Storage 5 | 1 2 . . . . 1 . . . . . . . . . 1 . . . . . . . Processor 14 | . . . . . 1 3 . . . . . 2 . . . . . 1 2 . 2 . 3 Hackware 5 | . . . . 1 1 2 . . . . . . . . . . . . . . 1 . . Protection 46 | . 1 . 1 . 8 4 . . 3 . 7 1 . . 2 6 . 2 2 3 2 2 2 Artifact . | . . . . . . . . . . . . . . . . . . . . . . . . Weapon 137 | 2 5 1 1 . 17 19 3 . 2 . 8 4 2 2 8 13 2 9 11 4 8 . 16 Energy Gun 24 | 1 . . . . 5 . 1 . . . . . . . . 2 1 2 3 . 4 . 5 Energy Cannon 8 | . 2 . 1 . . 2 . . . . . . . . . . . 1 . . 1 . 1 Ballistic Gun 45 | 1 2 1 . . 9 9 . . . . 1 2 . . 2 6 . 4 4 2 1 . 1 Ballistic Cannon 17 | . . . . . . 3 1 . 2 . 4 2 1 2 2 . . . . . . . . Launcher 21 | . 1 . . . 3 2 . . . . 1 . 1 . 3 1 1 1 . . 1 . 6 Special Weapon 11 | . . . . . . 1 . . . . . . . . . . . 1 4 2 . . 3 Impact Weapon 8 | . . . . . . 1 . . . . 2 . . . 1 3 . . . . 1 . . Slashing Weapon 3 | . . . . . . 1 1 . . . . . . . . 1 . . . . . . . Piercing Weapon . | . . . . . . . . . . . . . . . . . . . . . . . . Special Melee Weapon . | . . . . . . . . . . . . . . . . . . . . . . . . Unidentified Prototypes 43 | . . . . . 5 9 2 . . . 2 . . . 1 2 . . 14 . 5 . 3 Corrupted Parts 4 | . . . . 1 . 1 . . . . . . . . 2 . . . . . . . . System Corruption 21 | . . . . 1 . 2 . . . . . . . . 18 . . . . . . . . Parts Lost 108 | . 4 . . . 10 13 . . . . 13 5 . . 13 6 . 2 2 2 13 . 25 Power 11 | . . . . . . 1 . . . . 1 . . . 1 2 . 1 1 . 1 . 3 Propulsion 29 | . 2 . . . . 5 . . . . 4 3 . . 5 1 . . . 2 1 . 6 Utility 38 | . 1 . . . 6 6 . . . . 7 1 . . 5 1 . . 1 . 4 . 6 Weapon 30 | . 1 . . . 4 1 . . . . 1 1 . . 2 2 . 1 . . 7 . 10 Highest Loss Streak 8 | . 4 . . . 3 6 . . . . 4 3 . . 6 4 . 1 1 1 3 . 8 To Critical Strikes 1 | . . . . . . . . . . . . . . . . . . . . . 1 . . Average Slot Usage (%) 91 | . 99 100 100 100 97 95 92 92 89 92 86 90 100 87 91 89 94 91 88 89 86 88 84 Engine 3 | . 9 . 2 14 9 5 . . . . 3 6 6 6 3 3 5 5 1 . . . . Core 2 | . 4 14 11 . . 1 7 7 7 7 1 . . . 2 4 5 1 . . 1 . . Reactor 2 | . . . . . . . . . . . . . . . . . . 1 5 5 7 10 8 Treads 19 | . 26 28 28 28 26 28 23 23 23 23 18 18 26 26 12 . . 2 9 . 21 25 20 Leg 4 | . 1 . . . . . . . . . . 4 . . 12 22 23 20 5 20 4 . . Device 10 | . 8 . . . 16 9 15 15 13 7 17 18 20 20 13 5 5 5 5 14 7 9 6 Storage 6 | . 14 14 14 14 9 7 7 7 7 7 6 6 6 6 6 5 5 5 5 5 5 5 5 Processor 15 | . . . . . . 19 23 23 23 23 13 16 20 20 20 17 17 18 22 17 16 15 12 Hackware 1 | . . . . . 4 2 . . . . . . . . . . . . . . 3 5 5 Protection 6 | . 4 14 14 14 12 3 . . 1 7 8 3 6 6 5 10 11 9 7 7 4 . 3 Energy Gun 2 | . 3 . . . 5 1 . . . . . . . . . 1 4 5 7 . 5 5 5 Energy Cannon 1 | . 10 7 4 14 1 . . . . . . . . . . . . . . . . 5 1 Ballistic Gun 6 | . 13 21 23 14 10 10 . . . . 1 6 . . 4 11 11 10 5 14 5 . . Ballistic Cannon 3 | . . . . . . 2 15 15 12 15 9 6 12 1 4 . . . . . . . . Naked Turns . | . . . . . . . . . . . . . . . . . . . . . . . . Heaviest Build 166 | 15 52 52 53 53 65 104 104 104 130 111 149 121 121 121 121 149 149 148 162 144 166 147 152 Greatest Support 204 | 40 40 40 40 40 60 115 115 115 115 115 115 104 104 104 104 88 88 92 110 110 204 183 199 Greatest Overweight (x) 8 | . 2 1 1 1 1 1 . . 1 . 5 4 1 1 2 2 1 1 5 1 2 1 8 Average Overweight (x) . | . . 1 1 1 . . . . . . 1 1 1 . 1 1 1 1 3 1 . . 1 Largest Inventory Capacity 25 | 8 20 20 20 20 20 25 25 25 25 25 25 25 25 25 25 25 25 25 25 25 25 25 25 Average Capacity 23 | 6 11 20 20 20 20 20 25 25 25 25 25 25 25 25 25 25 25 25 25 25 25 25 24 Most Carried 25 | 5 14 16 20 20 20 25 25 25 25 25 25 25 25 25 25 25 25 25 25 24 25 25 25 Average Carried 22 | 2 8 14 18 19 19 20 22 22 25 24 23 21 24 25 20 24 25 24 24 23 23 24 24 Final Capacity 25 | 8 20 20 20 20 20 25 25 25 25 25 25 25 25 25 25 25 25 25 25 25 25 25 5 Final Carried 25 | 3 14 16 20 20 20 25 22 25 25 25 20 25 25 25 17 25 25 23 24 23 25 25 2 Class Distribution -------------------- 70% | Scavenger-Mutant 10% | Mutant 9% | Scavenger-Tank 6% | Scavenger-Gunner Dominant Class ---------------- Mutant | -10/Materials Mutant | -10/Mines Mutant | -10/Exiles Mutant | -9/Mines Scavenger-Mutant | -8/Materials Scavenger-Mutant | -7/Factory Scavenger-Mutant | -7/Lower Caves Scavenger-Mutant | -7/Lower Caves Scavenger-Mutant | -7/Zion Scavenger-Mutant | -6/Proximity Caves Scavenger-Mutant | -6/Factory Scavenger-Mutant | -6/Lower Caves Scavenger-Mutant | -6/Lower Caves Scavenger-Mutant | -6/Data Miner Scavenger-Mutant | -5/Proximity Caves Scavenger-Mutant | -5/Factory Scavenger-Tank | -5/Upper Caves Scavenger-Tank | -5/Upper Caves Scavenger-Tank | -5/Warlord Scavenger-Gunner | -4/Proximity Caves Scavenger-Mutant | -4/Factory Scavenger-Mutant | -4/Waste Scavenger-Mutant | -4/Factory Resources | -11 -10 -10 -10 -9 -8 -7 -7 -7 -7 -6 -6 -6 -6 -6 -5 -5 -5 -5 -5 -4 -4 -4 -4 ----------- Run | Scr Mat Min Exi Min Mat Fac Low Low Zio Pro Fac Low Low Dat Pro Fac Upp Upp War Pro Fac Was Fac Matter Collected 11836 | 298 275 14 35 10 1518 1488 73 200 48 131 1342 1057 418 . 673 1112 162 292 428 345 604 102 1211 Remotely . | . . . . . . . . . . . . . . . . . . . . . . . . Salvage Created 22987 | 128 574 35 105 86 2477 3101 78 126 . 32 1237 1505 313 . 870 1705 108 423 1133 926 1670 609 5746 Parts 1080 | 9 35 3 4 7 106 172 . 3 . 4 39 78 21 . 24 111 10 40 51 27 94 9 233 Haulers Intercepted 20 | . 1 . . . 4 4 . . . . 3 . . . . 2 . . . 1 . . 5 Recyclers Shooed 26 | . . . . . 7 4 . . . . 4 . . . . 2 . . . . 3 . 6 Parts Field Recycled . | . . . . . . . . . . . . . . . . . . . . . . . . Retrieved Matter . | . . . . . . . . . . . . . . . . . . . . . . . . Parts Self-Destructed 138 | . . . . . . . . 9 5 13 . 24 16 . 10 . 6 32 . 23 . . . Prevented 15 | . . . . . . . . . . 1 . . . . 10 . 4 . . . . . . Kills | -11 -10 -10 -10 -9 -8 -7 -7 -7 -7 -6 -6 -6 -6 -6 -5 -5 -5 -5 -5 -4 -4 -4 -4 ------- Run | Scr Mat Min Exi Min Mat Fac Low Low Zio Pro Fac Low Low Dat Pro Fac Upp Upp War Pro Fac Was Fac Combat Hostiles Destroyed 395 | . 10 2 . . 42 38 . 6 . 1 29 11 10 . 11 16 4 10 58 25 19 2 101 Melee 6 | . . . . . . . . . . . 6 . . . . . . . . . . . . Guns 154 | . 3 1 . . 31 26 . . . . 2 9 . . 4 10 1 7 4 10 19 2 25 Cannons 57 | . 5 1 . . 5 4 . 6 . 1 14 2 7 . . . . . 6 2 . . 4 AOE 153 | . 2 . . . 6 7 . . . . 1 . 3 . 2 2 3 3 48 13 . . 63 Classes Destroyed 26 | 2 6 . . 1 5 2 . . . . . 2 . . . . . 1 4 . . 1 2 Worker 39 | . . . . 1 8 9 . . . . 4 . . . . 3 . . . . . . 14 Builder 28 | . 2 . . 1 1 6 . . . . 3 . . . . 1 . . . . 3 . 11 Tunneler 5 | 2 1 . . . . . . . . . 1 . . . . . . . . . . . 1 Hauler 20 | . 1 . . . 4 4 . . . . 3 . . . . 2 . . . 1 . . 5 Recycler 19 | 1 1 . . 1 3 7 . . . . 1 . . . . 1 . . . . . . 4 Carrier 1 | . . . . . . . . . . . . . . . . . . . . . . . 1 Mechanic 8 | . . . . . . 3 . . . . . . . . . . . . . . . . 5 Operator 4 | . 1 . . . 2 . . . . . . . . . . . . . . . 1 . . Watcher 16 | . 1 . . . 5 2 . . . . . . . . . 3 . . . . 1 . 4 Swarmer 48 | . 3 2 . . 4 4 . 3 . . 1 3 3 . . . 4 8 2 5 . . 6 Saboteur 3 | . . . . . . . . . . . . . . . . . . . . . . . 3 Grunt 162 | . 7 . . . 26 11 . 2 . . 19 5 4 . 7 5 . . 18 10 5 . 43 Brawler 16 | . . . . . 1 1 . . . . 1 . . . . . . . 5 3 . . 5 Duelist 11 | . . . . . . . . . . . . . . . 1 . . . 3 4 . . 3 Protector 8 | . . . . . . . . . . . . . . . . . . . 5 . . . 3 Sentry 27 | . . . . . 7 4 . 1 . . 2 1 . . 1 4 . . . 1 1 . 5 Demolisher 6 | . . . . . . . . . . . . . . . . . . . 6 . . . . Specialist 11 | . . . . . 2 2 . . . . 1 . . . . . . . 1 . . . 5 Hunter 22 | . . . . . 1 2 . . . . 2 . 2 . 2 3 . . . . 2 . 8 Programmer 61 | . . . . . . 11 . . . 1 3 1 1 . . 4 . . 11 2 9 . 18 Heavy 6 | . . . . . 1 3 . . . . . . . . . . . . . . 1 . 1 Behemoth 2 | . . . . . . . . . . . . . . . . . . 1 . . 1 . . Compactor 2 | . . . . . . . . . . . . . . . . . . . . . . 2 . Striker 2 | . . . . . . . . . . . . . . . . . . . 1 . . . 1 Executioner 4 | . . . . . . . . . . . . . . . . . . . 4 . . . . Z-Courier 2 | . . . . . . . . . . . . . . . . . . . . . 2 . . Decomposer 2 | . . . . . . . . . . . . 2 . . . . . . . . . . . Packrat 1 | . . . . . . . 1 . . . . . . . . . . . . . . . . Surgeon 1 | . . . . . . . . . . . . . . . . . . . 1 . . . . Wasp 1 | . . . . . . . . . . . . . . . . . . . . . . 1 . Thug 4 | . . . . . . . . . . . . 4 . . . . . . . . . . . Savage 2 | . . . . . . . . . . . . . . . . . . . 2 . . . . Butcher 3 | . . . . . . . . . . . . 3 . . . . . . . . . . . Guerrilla 2 | . . . . . . . . . . . . 2 . . . . . . . . . . . Mutant 4 | . . . . . . . . . . . . 2 . . . . . 1 1 . . . . Commander 1 | . . . . . . . . . . . . 1 . . . . . . . . . . . Best Kill Streak 36 | 2 3 2 . 3 7 26 . 3 . 1 9 3 4 . 4 5 4 5 15 8 4 2 36 Combat Bots Only 18 | . 3 2 . . 6 12 . 3 . 1 4 3 4 . 4 5 4 5 15 8 3 2 18 Max Kills in Single Turn 8 | 1 2 1 . 2 3 4 1 1 . 1 3 1 2 . 1 2 2 2 5 6 2 1 8 Gunslinging 1 | . . . . . 1 . . . . . . . . . . . . . 1 1 . . 1 Exploded 6 | . 2 . . . 3 3 . . . . 1 . 2 . 1 2 2 2 5 6 . . 5 Melee 1 | . . . . . . . . . . . 1 . . . . . . . . . . . . Uniques/NPCs Destroyed . | . . . . . . . . . . . . . . . . . . . . . . . . Combat | -11 -10 -10 -10 -9 -8 -7 -7 -7 -7 -6 -6 -6 -6 -6 -5 -5 -5 -5 -5 -4 -4 -4 -4 -------- Run | Scr Mat Min Exi Min Mat Fac Low Low Zio Pro Fac Low Low Dat Pro Fac Upp Upp War Pro Fac Was Fac Damage Taken 33319 | . 804 7 . . 2725 3642 . 503 . 139 4120 1025 594 . 2136 1917 302 938 2758 1178 2878 . 7653 Core 3626 | . 48 . . . 310 312 . 35 . 28 340 181 33 . 208 141 . 115 531 144 309 . 891 Absorbed by Shields 280 | . . . . . . . . . . . . . . . . . . . . . 200 . 80 Reduced by Siege Mode 103 | . . . . . . . . 13 . . 9 . . . . . . . . . 81 . . Redirected to Shielding 50 | . . . . . . . . . . . . . . . 50 . . . . . . . . Regen/Repaired (Parts) 797 | . . . . . . . . . 797 . . . . . . . . . . . . . . Core Remaining (%) 47 | 100 . . . 80 43 . . . . 46 . . . . 10 . . . . 6 . . . Volleys Fired 1213 | 6 53 2 10 2 184 135 1 15 1 3 101 94 25 . 42 80 8 27 33 27 105 12 247 Largest 3 | 2 2 2 2 2 2 2 2 2 1 2 2 2 2 . 2 3 3 3 3 3 3 1 2 Hottest 198 | 60 120 80 84 84 89 108 80 80 40 80 80 114 114 . 114 114 137 137 198 114 146 73 150 Shots Fired 2066 | 12 105 4 11 4 358 239 4 30 1 6 188 188 45 . 66 172 12 74 55 62 159 12 259 Gun 1463 | 12 61 2 1 2 310 196 . . . . 10 166 . . 24 165 6 71 29 49 159 11 189 Cannon 456 | . 43 2 10 2 43 35 4 30 1 6 172 22 40 . 32 . . . . . . 1 13 Launcher 87 | . 1 . . . 5 6 . . . . 6 . 5 . 10 7 6 3 . . . . 38 Special 60 | . . . . . . 2 . . . . . . . . . . . . 26 13 . . 19 Kinetic 1315 | 6 51 2 1 2 217 215 4 30 1 6 182 188 40 . 56 139 4 47 4 49 65 . 6 Thermal 535 | . 43 2 10 2 136 16 . . . . . . . . . 26 2 24 25 . 78 11 160 Explosive 115 | . 1 . . . 5 . . . . . 6 . 5 . 2 . . . 26 13 . . 57 Electromagnetic 65 | 6 10 . . . . 6 . . . . . . . . 8 7 6 3 . . 6 1 12 Phasic 34 | . . . . . . . . . . . . . . . . . . . . . 10 . 24 Robot Hit Streak 29 | 4 22 25 29 2 25 29 2 5 . 2 15 25 6 . 7 16 1 8 27 17 14 5 22 Robot Miss Streak 7 | 1 4 . 1 1 4 3 2 2 . 1 6 3 3 . 7 7 4 3 2 5 6 3 4 Penetration Max 1 | . . . . . 1 1 . . . . 1 1 . . 1 1 . . 1 . 1 . . Secondary Targets 31 | . . . . . 3 8 . . . . . 2 . . 1 . . 2 2 7 5 . 1 Max Gunslinging Chain 2 | . . . . . 1 1 . . . . . 1 . . 1 . . 1 1 2 1 . 1 Capacitor 141 | . . . . . . . . . . . . . . . . . . . . . . 12 129 Shots Hit Robots 1472 | 8 65 3 9 2 276 180 2 13 . 2 160 126 21 . 53 107 1 42 49 40 85 8 220 Core Hits 1037 | 4 23 2 2 3 131 127 1 6 . 1 63 49 23 . 35 47 6 19 155 46 45 5 244 Critical Kills 23 | . . . . . 1 3 . . . . 4 2 6 . 3 1 . . 1 . 2 . . Critical Parts Destroyed 36 | . . . . . 1 1 . . . . 6 5 5 . 7 5 . 1 2 . . . 3 Critical Strikes 112 | . 1 . . . 10 6 . . . . 19 8 11 . 15 6 . 1 12 1 2 . 20 Burn 20 | . . . . . 8 . . . . . . . . . . . . . . . . . 12 Meltdown 1 | . . . . . . 1 . . . . . . . . . . . . . . . . . Destroy 50 | . . . . . 2 3 . . . . 1 8 11 . 12 5 . 1 4 . 2 . 1 Blast 11 | . . . . . . 2 . . . . 9 . . . . . . . . . . . . Corrupt 2 | . 1 . . . . . . . . . . . . . . . . . . . . . 1 Smash 15 | . . . . . . . . . . . 9 . . . 3 1 . . . . . . 2 Sever 11 | . . . . . . . . . . . . . . . . . . . 8 1 . . 2 Intensify 2 | . . . . . . . . . . . . . . . . . . . . . . . 2 Melee Attacks 86 | . . . . . . 2 . . . . 56 . . . 9 7 . . . . . 1 11 Impact 85 | . . . . . . 1 . . . . 56 . . . 9 7 . . . . . 1 11 Slashing 1 | . . . . . . 1 . . . . . . . . . . . . . . . . . Piercing . | . . . . . . . . . . . . . . . . . . . . . . . . Sneak Attacks 11 | . . . . . . . . . . . 4 . . . . 2 . . . . . 1 4 Combat Hostiles . | . . . . . . . . . . . . . . . . . . . . . . . . Follow-up Attacks . | . . . . . . . . . . . . . . . . . . . . . . . . Damage Inflicted 74735 | 101 1143 48 166 50 5449 5336 79 480 . 162 8219 2983 762 . 2357 3167 153 1054 12895 4265 3033 403 22430 Guns 23925 | 101 436 11 . 12 4171 3034 . . . . 295 2740 . . 445 2256 19 939 748 1010 2940 310 4458 Cannons 8902 | . 559 37 166 36 653 819 79 480 . 162 4412 243 343 . 437 . . . . . . 30 446 Explosions 34966 | . 136 . . . 564 1344 . . . . 874 . 419 . 682 584 134 115 11029 2880 2 . 16203 Melee 4293 | . . . . . . . . . . . 2579 . . . 793 288 . . . . . 63 570 Ramming 441 | . 12 . . 2 61 139 . . . . 59 . . . . 39 . . . . 91 . 38 Kinetic 21798 | 37 342 11 . 12 2788 3517 79 480 . 162 4707 2983 343 . 882 1921 19 566 185 1010 1601 . 153 Thermal 11950 | . 559 37 166 36 2036 1074 . . . . . . . . 92 359 . 396 563 . 1059 310 5263 Explosive 30499 | . 136 . . . 564 . . . . . 842 . 419 . 93 . . . 11029 2880 . . 14536 Electromagnetic 2520 | 64 94 . . . . 606 . . . . 32 . . . 497 560 134 92 . . 92 30 319 Impact 4293 | . . . . . . . . . . . 2579 . . . 793 288 . . . . . 63 570 Slashing 2208 | . . . . . . . . . . . . . . . . . . . 1118 375 . . 715 Piercing . | . . . . . . . . . . . . . . . . . . . . . . . . Phasic 1026 | . . . . . . . . . . . . . . . . . . . . . 190 . 836 Highest Corruption 35 | . . . . 1 4 21 21 21 21 . 4 5 5 5 24 1 1 1 4 4 8 8 35 Average Corruption 8 | . . . . 1 4 12 21 21 21 . 1 4 5 5 18 1 1 1 1 4 5 8 14 Corruption Purged . | . . . . . . . . . . . . . . . . . . . . . . . . Corruption Blocked 10 | . . . . . . . . . . . . . . . . . . . 10 . . . . Effects 473 | . . . . . 43 82 14 37 4 . 7 39 26 3 44 1 1 11 4 9 25 26 97 Message Errors 107 | . . . . . 9 18 4 10 1 . 5 6 . . 16 . . 4 . 3 7 8 16 Matter Fused 106 | . . . . . 15 14 . 10 2 . 1 4 11 1 10 1 . 3 1 1 7 3 22 Heat Flow Errors 69 | . . . . . 9 9 4 6 . . . 12 3 . 3 . 1 4 1 . 1 4 12 Energy Discharges 49 | . . . . . 3 14 1 2 . . . 4 2 2 2 . . . 1 1 3 1 13 Parts Rejected 7 | . . . . . . 1 . . . . 1 2 . . 1 . . . . 1 . . 1 Data Loss (minor) 49 | . . . . . 4 5 2 6 . . . 5 5 . 1 . . . 1 . 1 5 14 Data Loss (major) 29 | . . . . . 1 7 1 1 . . . 2 3 . 3 . . . . 3 2 2 4 Misfires 17 | . . . . . 1 3 2 1 . . . 1 1 . . . . . . . 2 1 5 Alerts 8 | . . . . . . . . . 1 . . 2 . . 2 . . . . . . 1 2 Misdirections 4 | . . . . . . 4 . . . . . . . . . . . . . . . . . Weapon Failures 28 | . . . . . 1 7 . 1 . . . 1 1 . 6 . . . . . 2 1 8 Overload Shots . | . . . . . . . . . . . . . . . . . . . . . . . . Overflow Damage 3313 | . 18 . . . . 49 23 18 . 12 1024 22 . . 281 147 . . 326 64 . . 1329 Projectiles 355 | . 18 . . . . 5 23 18 . 12 135 22 . . . . . . 38 . . . 84 Explosions 1213 | . . . . . . 35 . . . . 44 . . . 19 . . . 288 64 . . 763 Melee 1745 | . . . . . . 9 . . . . 845 . . . 262 147 . . . . . . 482 Knockbacks 81 | . 1 . . . 1 2 . 5 . 2 55 3 2 . 1 2 . . . . 4 . 3 Impact 20 | . 1 . . . 1 . . . . . 10 . . . 1 2 . . . . 3 . 2 Kinetic 50 | . . . . . . 2 . 5 . 2 36 3 2 . . . . . . . . . . Secondary 11 | . . . . . . . . . . . 9 . . . . . . . . . 1 . 1 Self-Inflicted Damage 840 | . 29 . . . 31 73 . . . . 14 . . . 58 . 70 1 . . . . 564 Shots 24 | . 1 . . . 4 2 . . . . 1 . . . 2 . 4 1 . . . . 9 Rammed 42 | . 3 . . 1 12 14 . . . . 5 . . . . . . . . . 5 . 2 Targets Rammed 50 | . 3 . . 1 14 16 . . . . 5 . . . . 1 . . . . 5 . 5 Kicked 1 | . . . . . . . . . . . . . . . . 1 . . . . . . . Crushed 7 | . . . . . 2 2 . . . . . . . . . . . . . . . . 3 Highest Temperature 565 | . 397 100 270 66 565 266 273 187 . 12 180 359 219 . 204 340 238 336 357 . 291 182 373 Average Temperature 85 | . 157 54 125 33 76 57 104 73 . 8 39 84 49 . 47 62 92 131 103 . 97 60 96 Received Heat Transfer 6146 | . 366 . . . 1242 807 . 135 . 12 1259 346 130 . 279 192 . 96 189 114 190 . 789 Effects 18 | . 4 . . . 5 . . . . . . 1 . . . . . 2 . . 4 . 2 Shutdowns 3 | . . . . . 1 . . . . . . . . . . . . . . . . . 2 Energy Bleed 5 | . 2 . . . 2 . . . . . . . . . . . . . . . 1 . . Interference 7 | . . . . . 1 . . . . . . 1 . . . . . 2 . . 3 . . Matter Decay 2 | . 1 . . . 1 . . . . . . . . . . . . . . . . . . Short Circuit 1 | . 1 . . . . . . . . . . . . . . . . . . . . . . Siege Activations 4 | . . . . . . . . 1 . . 2 . . . . . . . . . 1 . . Total Turns 54 | . . . . . . . . 17 . . 24 . . . . . . . . . 13 . . Longest Duration 17 | . . . . . . . . 17 . . 16 . . . . . . . . . 13 . . Robots Corrupted 7 | . . . . . . . . . . . . . . . 3 3 . . . . . . 1 Combat Hostiles 7 | . . . . . . . . . . . . . . . 3 3 . . . . . . 1 Parts Fried 30 | . . . . . . 1 . . . . 11 . . . 4 6 . . . . . . 8 Impact Corruptions 57 | . . . . . . 1 . . . . 30 . . . 9 6 . . . . 1 . 10 Robots Melted 9 | . . . . . . 1 . . . . . . . . . . . . . . . . 8 Combat Hostiles 8 | . . . . . . 1 . . . . . . . . . . . . . . . . 7 Parts Melted 34 | . 2 . 1 . 9 3 . . . . . . . . . 2 . . 1 1 1 . 14 Heat Transferred 19638 | . 1147 74 333 74 4884 1549 . . . . . . . . 100 568 . 555 851 . 1073 333 8097 Parts Sabotaged 3 | . . . . . . . . . . . . . . . . . . . . . . . 3 Parts Stolen . | . . . . . . . . . . . . . . . . . . . . . . . . Parts Stripped . | . . . . . . . . . . . . . . . . . . . . . . . . Power Chain Reactions 16 | . . . . . . 8 . . . . . . . . 1 1 . 1 . . . . 5 Missiles Intercepted . | . . . . . . . . . . . . . . . . . . . . . . . . Alert | -11 -10 -10 -10 -9 -8 -7 -7 -7 -7 -6 -6 -6 -6 -6 -5 -5 -5 -5 -5 -4 -4 -4 -4 ------- Run | Scr Mat Min Exi Min Mat Fac Low Low Zio Pro Fac Low Low Dat Pro Fac Upp Upp War Pro Fac Was Fac Peak Influence 3526 | 15 216 91 . 15 642 911 . . . . 711 . . . . 286 . . . . 867 335 3526 Initial 303 | . 9 37 . . 5 223 . . . . 113 . . . . . . . . . 207 303 53 Average 408 | 8 70 65 . 6 276 418 . . . . 326 . . . . 89 . . . . 599 200 849 Maximum Alert Level 5 | . 1 . . . 2 3 . . . . 3 . . . . 1 . . . . 3 1 5 Low Security (%) 37 | 100 99 100 . 100 52 6 . . . . 28 . . . . 80 . . . . . 41 25 Level 1 28 | . . . . . 20 61 . . . . 45 . . . . 19 . . . . 31 58 8 Level 2 16 | . . . . . 27 11 . . . . 26 . . . . . . . . . 13 . 30 Level 3 12 | . . . . . . 20 . . . . . . . . . . . . . . 54 . 6 Level 4 2 | . . . . . . . . . . . . . . . . . . . . . . . 13 Level 5 1 | . . . . . . . . . . . . . . . . . . . . . . . 6 High Security 1 | . . . . . . . . . . . . . . . . . . . . . . . 8 Max Security . | . . . . . . . . . . . . . . . . . . . . . . . . Squads Dispatched 77 | . 2 . . . 9 11 . . . . 11 . . . . 4 . . . 1 9 . 30 Investigation 8 | . 1 . . . 1 3 . . . . 1 . . . . . . . . . . . 2 Extermination 21 | . . . . . . 4 . . . . 3 . . . . 3 . . . . 5 . 6 Reinforcement 23 | . 1 . . . 6 4 . . . . 4 . . . . 1 . . . . 3 . 4 Assault 17 | . . . . . . . . . . . . . . . . . . . . 1 1 . 15 Garrison 8 | . . . . . 2 . . . . . 3 . . . . . . . . . . . 3 Intercept . | . . . . . . . . . . . . . . . . . . . . . . . . Searches Triggered . | . . . . . . . . . . . . . . . . . . . . . . . . Data Miner Redirects 5 | . . . . . . . . . . . . . . . . . . . . . 1 . 4 Construction Impeded 6 | . . . . . 1 . . . . . 2 . . . . 1 . . . . 1 . 1 Haulers Reinforced 2 | . . . . . . 1 . . . . . . . . . . . . . . . . 1 Active Scanning Responses . | . . . . . . . . . . . . . . . . . . . . . . . . Cargo Convoy Interrupts 2 | . . . . . . 1 . . . . . . . . . . . . . . . . 1 Stealth | -11 -10 -10 -10 -9 -8 -7 -7 -7 -7 -6 -6 -6 -6 -6 -5 -5 -5 -5 -5 -4 -4 -4 -4 --------- Run | Scr Mat Min Exi Min Mat Fac Low Low Zio Pro Fac Low Low Dat Pro Fac Upp Upp War Pro Fac Was Fac Distress Signals 21 | . 1 . . . 4 5 . . . . 2 . . . . . . . . . 6 . 3 Communications Jammed 36 | . . . . . . 27 . . . . 9 . . . . . . . . . . . . Distress Signals 31 | . . . . . . 24 . . . . 7 . . . . . . . . . . . . Times Spotted 618 | . 14 3 . . 64 64 . 6 . 7 58 14 11 . 12 23 4 10 108 28 49 6 137 Peak Tracking Total 18 | . 3 3 . . 9 12 . 3 . 2 6 3 4 . 4 5 4 4 18 10 12 2 18 Tactical Retreats 30 | . . . . . 4 1 . . . 1 13 4 3 . 1 . . . . 1 1 . 1 Traps | -11 -10 -10 -10 -9 -8 -7 -7 -7 -7 -6 -6 -6 -6 -6 -5 -5 -5 -5 -5 -4 -4 -4 -4 ------- Run | Scr Mat Min Exi Min Mat Fac Low Low Zio Pro Fac Low Low Dat Pro Fac Upp Upp War Pro Fac Was Fac Traps Triggered 10 | . . . . . 1 4 . . . . 1 . . . . . . . . . 1 . 3 Indirectly . | . . . . . . . . . . . . . . . . . . . . . . . . Trap Hack Attempts . | . . . . . . . . . . . . . . . . . . . . . . . . Triggered . | . . . . . . . . . . . . . . . . . . . . . . . . Disarmed . | . . . . . . . . . . . . . . . . . . . . . . . . Reprogrammed . | . . . . . . . . . . . . . . . . . . . . . . . . Reused . | . . . . . . . . . . . . . . . . . . . . . . . . Traps Extracted . | . . . . . . . . . . . . . . . . . . . . . . . . Installed . | . . . . . . . . . . . . . . . . . . . . . . . . Triggered 13 | . . . . . . . . . . . . . . . . . . . 13 . . . . Machines | -11 -10 -10 -10 -9 -8 -7 -7 -7 -7 -6 -6 -6 -6 -6 -5 -5 -5 -5 -5 -4 -4 -4 -4 ---------- Run | Scr Mat Min Exi Min Mat Fac Low Low Zio Pro Fac Low Low Dat Pro Fac Upp Upp War Pro Fac Was Fac Machines Disabled 37 | . . . . . 1 2 . . . . 2 3 . . . 1 . 1 . 1 8 . 18 Max in Single Turn 6 | . . . . . 1 1 . . . . 1 1 . . . 1 . 1 . 1 4 . 6 Garrison Access 3 | . . . . . 1 1 . . . . . . . . . . . . . . 1 . . Machines Sabotaged . | . . . . . . . . . . . . . . . . . . . . . . . . Garrisons Compromised . | . . . . . . . . . . . . . . . . . . . . . . . . Overloaded Fab Kills . | . . . . . . . . . . . . . . . . . . . . . . . . Hacking | -11 -10 -10 -10 -9 -8 -7 -7 -7 -7 -6 -6 -6 -6 -6 -5 -5 -5 -5 -5 -4 -4 -4 -4 --------- Run | Scr Mat Min Exi Min Mat Fac Low Low Zio Pro Fac Low Low Dat Pro Fac Upp Upp War Pro Fac Was Fac Machines Accessed 36 | . 5 . 1 . 6 7 . . . . 1 2 . 4 . 3 . 1 2 . 2 . 2 Terminals 13 | . 4 . . . 4 4 . . . . . . . . . . . 1 . . . . . Fabricators 4 | . . . . . . . . . . . 1 . . . . 2 . . . . . . 1 Repair Stations 1 | . . . . . . . . . . . . . . . . . . . . . 1 . . Recycling Units 3 | . 1 . . . 1 1 . . . . . . . . . . . . . . . . . Scanalyzers 2 | . . . . . . 1 . . . . . . . . . . . . . . . . 1 Garrison Access 4 | . . . . . 1 1 . . . . . . . . . 1 . . . . 1 . . Total Hacks 109 | . 17 . 2 . 16 15 . . . . 3 7 . 29 . 4 . 1 5 . 5 . 5 Successful 76 | . 11 . 2 . 9 7 . . . . . 7 . 29 . 1 . 1 5 . 2 . 2 Failed 32 | . 5 . . . 7 8 . . . . 3 . . . . 3 . . . . 3 . 3 Catastrophic 10 | . 2 . . . 4 2 . . . . 1 . . . . 1 . . . . . . . Database Lockouts 1 | . 1 . . . . . . . . . . . . . . . . . . . . . . Manual 85 | . 13 . 2 . 9 3 . . . . 12 . . . . 7 . . 1 . 21 . 17 Terminals 41 | . 16 . . . 14 10 . . . . . . . . . . . 1 . . . . . Fabricators 6 | . . . . . . . . . . . 3 . . . . 2 . . . . . . 1 Repair Stations 4 | . . . . . . . . . . . . . . . . . . . . . 4 . . Recycling Units 4 | . 1 . . . 1 2 . . . . . . . . . . . . . . . . . Scanalyzers 6 | . . . . . . 2 . . . . . . . . . . . . . . . . 4 Garrison Access 5 | . . . . . 1 1 . . . . . . . . . 2 . . . . 1 . . Terminal Hacks 62 | . 8 . 2 . 6 4 . . . . . 7 . 29 . . . 1 5 . . . . Record 28 | . 3 . 2 . . 1 . . . . . 6 . 11 . . . 1 4 . . . . Part Schematic 11 | . 1 . . . . . . . . . . . . 10 . . . . . . . . . Robot Schematic 5 | . . . . . . . . . . . . . . 5 . . . . . . . . . Robot Analysis 6 | . 4 . . . 1 1 . . . . . . . . . . . . . . . . . Prototype ID Bank 3 | . . . . . . . . . . . . . . 3 . . . . . . . . . Open Door 2 | . . . . . . . . . . . . 1 . . . . . . 1 . . . . Branch Access Points 1 | . . . . . . 1 . . . . . . . . . . . . . . . . . Alert Level 2 | . . . . . 2 . . . . . . . . . . . . . . . . . . Unreport Threat 2 | . . . . . 2 . . . . . . . . . . . . . . . . . . Locate Traps 1 | . . . . . . 1 . . . . . . . . . . . . . . . . . Hauler Manifests 1 | . . . . . 1 . . . . . . . . . . . . . . . . . . Fabricator Hacks . | . . . . . . . . . . . . . . . . . . . . . . . . Repair Station Hacks 1 | . . . . . . . . . . . . . . . . . . . . . 1 . . Scan Component 1 | . . . . . . . . . . . . . . . . . . . . . 1 . . Recycling Unit Hacks . | . . . . . . . . . . . . . . . . . . . . . . . . Scanalyzer 2 | . . . . . . 1 . . . . . . . . . . . . . . . . 1 Insert Component 2 | . . . . . . 1 . . . . . . . . . . . . . . . . 1 Garrison Access Hacks 3 | . . . . . 1 1 . . . . . . . . . . . . . . 1 . . Seal Access 3 | . . . . . 1 1 . . . . . . . . . . . . . . 1 . . Unauthorized Hacks 8 | . 3 . . . 2 1 . . . . . . . . . 1 . . . . . . 1 Terminals 3 | . 2 . . . 1 . . . . . . . . . . . . . . . . . . Track 1 | . . . . . 1 . . . . . . . . . . . . . . . . . . Botnet 2 | . 2 . . . . . . . . . . . . . . . . . . . . . . Fabricators 2 | . . . . . . . . . . . . . . . . 1 . . . . . . 1 Haulers 2 | . . . . . . . . . . . . . . . . 1 . . . . . . 1 Repair Stations . | . . . . . . . . . . . . . . . . . . . . . . . . Recycling Units 3 | . 1 . . . 1 1 . . . . . . . . . . . . . . . . . Tunnel 3 | . 1 . . . 1 1 . . . . . . . . . . . . . . . . . Scanalyzers . | . . . . . . . . . . . . . . . . . . . . . . . . Garrison Access . | . . . . . . . . . . . . . . . . . . . . . . . . Data Cores Recovered 2 | . 1 . . . . . . . . . . . . . . . . . . . . . 1 Used . | . . . . . . . . . . . . . . . . . . . . . . . . Hacking Detections 18 | . 4 . . . 4 5 . . . . 1 . . . . 2 . . . . 1 . 1 Full Trace Events 4 | . 1 . . . . 2 . . . . 1 . . . . . . . . . . . . Feedback Events . | . . . . . . . . . . . . . . . . . . . . . . . . Feedback Blocked . | . . . . . . . . . . . . . . . . . . . . . . . . Robot Schematics Acquired 12 | . . . . . . . . . 4 . 3 . . 5 . . . . . . . . . Robots Built . | . . . . . . . . . . . . . . . . . . . . . . . . Authchips . | . . . . . . . . . . . . . . . . . . . . . . . . Time . | . . . . . . . . . . . . . . . . . . . . . . . . Total Robot Build Rating . | . . . . . . . . . . . . . . . . . . . . . . . . Part Schematics Acquired 44 | . 1 . . . . . . . 15 . . . . 10 . 8 . . . . . . 10 Parts Built . | . . . . . . . . . . . . . . . . . . . . . . . . Authchips . | . . . . . . . . . . . . . . . . . . . . . . . . Time . | . . . . . . . . . . . . . . . . . . . . . . . . Total Part Build Rating . | . . . . . . . . . . . . . . . . . . . . . . . . Parts Repaired . | . . . . . . . . . . . . . . . . . . . . . . . . Time . | . . . . . . . . . . . . . . . . . . . . . . . . Parts Recycled . | . . . . . . . . . . . . . . . . . . . . . . . . Recycled Matter . | . . . . . . . . . . . . . . . . . . . . . . . . Retrieved Matter . | . . . . . . . . . . . . . . . . . . . . . . . . Retrieved Components . | . . . . . . . . . . . . . . . . . . . . . . . . Parts Scanalyzed . | . . . . . . . . . . . . . . . . . . . . . . . . Part Schematics Acquired . | . . . . . . . . . . . . . . . . . . . . . . . . Parts Damaged . | . . . . . . . . . . . . . . . . . . . . . . . . Bothacking | -11 -10 -10 -10 -9 -8 -7 -7 -7 -7 -6 -6 -6 -6 -6 -5 -5 -5 -5 -5 -4 -4 -4 -4 ------------ Run | Scr Mat Min Exi Min Mat Fac Low Low Zio Pro Fac Low Low Dat Pro Fac Upp Upp War Pro Fac Was Fac Used RIF Installer . | . . . . . . . . . . . . . . . . . . . . . . . . Robots Hacked 1 | . . . . . . 1 . . . . . . . . . . . . . . . . . Non-combat 1 | . . . . . . 1 . . . . . . . . . . . . . . . . . Combat . | . . . . . . . . . . . . . . . . . . . . . . . . Robot Hacks Applied 2 | . . . . . . 2 . . . . . . . . . . . . . . . . . find_chute 2 | . . . . . . 2 . . . . . . . . . . . . . . . . . Relay Couplers Released 4 | . . . . . . . . . . . . . . . . . . . . . . . 4 Programmers 4 | . . . . . . . . . . . . . . . . . . . . . . . 4 Fabnet Peak Effective % . | . . . . . . . . . . . . . . . . . . . . . . . . Robots Rewired 2 | . . . . . . . . . . . . . . . . . . . . 2 . . . Allies Hacked 3 | . . . . . . . . . . . . . . . . . . . . . 1 . 2 Hacks Repelled . | . . . . . . . . . . . . . . . . . . . . . . . . Allies | -11 -10 -10 -10 -9 -8 -7 -7 -7 -7 -6 -6 -6 -6 -6 -5 -5 -5 -5 -5 -4 -4 -4 -4 -------- Run | Scr Mat Min Exi Min Mat Fac Low Low Zio Pro Fac Low Low Dat Pro Fac Upp Upp War Pro Fac Was Fac Total Allies 44 | . . 2 . . . . . . 8 . 1 . . . 1 . . . . 2 8 19 3 Largest Group 19 | . . 2 1 . . . . . 8 8 7 . . . 1 . . . . 2 4 19 13 Highest-Rated Group 684 | . . 51 31 . . . . . 264 264 236 . . . 96 . . . . 96 412 684 597 Highest-Rated Ally 103 | . . 31 31 . . . . . 40 40 40 . . . 96 . . . . 49 103 50 103 Zionite Dispatches 9 | . . . . . . . . . . . 2 . . . . . . . . . 5 . 2 Heavy 4 | . . . . . . . . . . . . . . . . . . . . . 3 . 1 Recon 1 | . . . . . . . . . . . 1 . . . . . . . . . . . . Explosive Resupply 1 | . . . . . . . . . . . . . . . . . . . . . 1 . . Offense Resupply 2 | . . . . . . . . . . . 1 . . . . . . . . . . . 1 Hover Resupply 1 | . . . . . . . . . . . . . . . . . . . . . 1 . . Total Orders 3 | . . . . . . . . . . . 1 . . . . . . . . . 1 . 1 DROP 3 | . . . . . . . . . . . 1 . . . . . . . . . 1 . 1 Ally Attacks 386 | . . 4 . . . . . . . 45 50 . . . 8 . . . . . 68 129 82 Total Damage 13380 | . . 20 . . . . . . . 674 1187 . . . 293 . . . . . 4747 3867 2592 Kills 67 | . . 1 . . . . . . . 7 9 . . . 1 . . . . . 23 8 18 Allies Corrupted 2 | . . . . . . . . . . . 1 . . . . . . . . . . . 1 Allies Melted 2 | . . . . . . . . . . . . . . . . . . . . . . . 2 Intel | -11 -10 -10 -10 -9 -8 -7 -7 -7 -7 -6 -6 -6 -6 -6 -5 -5 -5 -5 -5 -4 -4 -4 -4 ------- Run | Scr Mat Min Exi Min Mat Fac Low Low Zio Pro Fac Low Low Dat Pro Fac Upp Upp War Pro Fac Was Fac Robot Analysis Total 6 | . 4 . . . 1 1 . . . . . . . . . . . . . . . . . Derelict Logs Recovered 11 | . . . . . . . 2 1 . . . 1 3 . 1 . . 2 . 1 . . . Drone Launches . | . . . . . . . . . . . . . . . . . . . . . . . . Drone Recoveries . | . . . . . . . . . . . . . . . . . . . . . . . . Zionite Intel Received 6 | . . . . . . . . . . . 1 . . . . 1 . . . . 2 . 2 Emergency Access 1 | . . . . . . . . . . . . . . . . . . . . . . . 1 Prototype Schematics 2 | . . . . . . . . . . . . . . . . 1 . . . . . . 1 Unaware Schematics 1 | . . . . . . . . . . . 1 . . . . . . . . . . . . Trap Installations 1 | . . . . . . . . . . . . . . . . . . . . . 1 . . Active Garrisons 1 | . . . . . . . . . . . . . . . . . . . . . 1 . . Exploration | -11 -10 -10 -10 -9 -8 -7 -7 -7 -7 -6 -6 -6 -6 -6 -5 -5 -5 -5 -5 -4 -4 -4 -4 ------------- Run | Scr Mat Min Exi Min Mat Fac Low Low Zio Pro Fac Low Low Dat Pro Fac Upp Upp War Pro Fac Was Fac Turns Passed 25508 | 119 1066 197 978 38 1716 2097 292 834 1475 670 1693 1814 1296 160 916 1565 255 1067 1552 565 1955 688 2500 Spaces Moved 11200 | 69 465 79 393 12 526 960 174 474 883 389 581 618 506 94 353 648 124 490 759 271 790 394 1148 Core 25 | 25 . . . . . . . . . . . . . . . . . . . . . . . Treads 8072 | 44 461 79 393 12 526 960 174 474 883 389 452 410 506 94 150 . . 43 34 . 757 394 837 Legs 2103 | . 4 . . . . . . . . . . 187 . . 203 648 124 447 186 271 33 . . Wheels 1000 | . . . . . . . . . . . 129 21 . . . . . . 539 . . . 311 Hover . | . . . . . . . . . . . . . . . . . . . . . . . . Flight . | . . . . . . . . . . . . . . . . . . . . . . . . Fastest Speed 50 | 50 160 240 240 240 160 150 163 163 163 163 145 145 240 162 190 190 190 190 160 169 162 168 110 Average Speed 186 | 120 182 240 240 240 191 158 163 163 164 163 201 240 241 167 212 190 190 194 170 169 202 168 167 Slowest Speed 480 | 160 320 240 240 240 240 245 163 163 243 166 246 480 242 242 325 260 190 240 240 170 320 250 250 Overloaded Moves . | . . . . . . . . . . . . . . . . . . . . . . . . Propulsion Burnouts . | . . . . . . . . . . . . . . . . . . . . . . . . Robots Hopped . | . . . . . . . . . . . . . . . . . . . . . . . . Cave-ins Triggered . | . . . . . . . . . . . . . . . . . . . . . . . . Exploration Rate (%) 50 | 4 66 27 87 8 59 37 40 67 88 64 26 60 49 72 60 20 33 63 81 50 23 94 38 Regions Visited 23 Branch Regions 15 Pre-discovered Areas 5 | . 1 . 1 . 1 1 . . . . . . . 1 . . . . . . . . . Known Exits Taken 4 | . . . . . . 1 . . . . 1 . . . 1 1 . . . . . . . Unknown Exits Taken 17 | 1 1 1 1 1 1 . 1 1 1 1 . 1 1 1 . . 1 1 1 1 . . . Scrap Searched 22 | . . . . . . . 1 8 2 3 . . 1 . 2 . . 5 . . . . . Spaces Dug 230 | . 6 . . . . . . . . 1 2 . . . . 4 . 4 . 33 23 . 157 Terrain Destroyed 1547 | . 6 . . . 30 19 2 10 . 2 58 27 48 . 25 9 . 7 216 203 80 1 804 Melee 6 | . . . . . . . . . . . 1 . . . . 4 . . . . . . 1 Projectile 264 | . . . . . 1 6 2 10 . 2 44 27 24 . 3 3 . 3 3 41 80 1 14 AOE 1277 | . 6 . . . 29 13 . . . . 13 . 24 . 22 2 . 4 213 162 . . 789 Terrain Rammed . | . . . . . . . . . . . . . . . . . . . . . . . . Walls Destroyed . | . . . . . . . . . . . . . . . . . . . . . . . . Machines Disabled . | . . . . . . . . . . . . . . . . . . . . . . . . Actions | -11 -10 -10 -10 -9 -8 -7 -7 -7 -7 -6 -6 -6 -6 -6 -5 -5 -5 -5 -5 -4 -4 -4 -4 --------- Run | Scr Mat Min Exi Min Mat Fac Low Low Zio Pro Fac Low Low Dat Pro Fac Upp Upp War Pro Fac Was Fac Total 13943 | 93 581 84 420 17 899 1306 181 509 905 416 855 797 548 97 443 824 133 556 977 322 994 418 1568 Wait 520 | . 19 . . . 55 67 . 10 12 21 74 35 . . 9 14 . . 89 3 28 1 83 Move 11178 | 68 464 78 392 11 525 959 173 473 882 388 580 617 505 93 352 647 123 489 758 270 790 393 1148 Hop . | . . . . . . . . . . . . . . . . . . . . . . . . Pick Up 239 | 10 21 2 7 1 32 38 . 7 . 1 7 16 7 . 4 21 . 9 26 2 14 1 13 Fast Attach 147 | 1 2 1 2 . 13 13 . . 4 . 6 14 . 2 6 16 . 4 15 4 21 4 19 Attach 129 | 6 4 . . . 14 19 2 . . . 11 7 1 . 11 5 . 10 12 2 7 1 17 Detach 7 | . . . . . . 1 . . . . 2 . . . . . . . 4 . . . . Swap 116 | 1 6 . 1 1 27 23 2 . 3 1 8 2 2 . 6 11 2 4 4 4 4 . 4 Drop 248 | 1 9 1 8 1 35 33 3 4 3 2 5 12 8 2 4 22 . 13 36 . 20 5 21 Fire 1213 | 6 53 2 10 2 184 135 1 15 1 3 101 94 25 . 42 80 8 27 33 27 105 12 247 Melee 86 | . . . . . . 2 . . . . 56 . . . 9 7 . . . . . 1 11 Ram . | . . . . . . . . . . . . . . . . . . . . . . . . Kick 1 | . . . . . . . . . . . . . . . . 1 . . . . . . . Crush 49 | . 3 . . 1 14 16 . . . . 5 . . . . . . . . . 5 . 5 Escape Stasis . | . . . . . . . . . . . . . . . . . . . . . . . . Rewire 10 | . . . . . . . . . . . . . . . . . . . . 10 . . . Trap . | . . . . . . . . . . . . . . . . . . . . . . . . Miscellaneous . | . . . . . . . . . . . . . . . . . . . . . . . . Route ------- -11/Scrapyard -10/Materials (discovered 3 exits: [*Mat x2] / [*Min]) -10/Mines (discovered 2 exits: [*Mat] / *Exi) -10/Exiles -9/Mines -8/Materials -7/Factory (discovered 5 exits: *Fac / *Sto x2 / *Low x2) -7/Lower Caves -7/Lower Caves (discovered 2 exits: *Fac / [*Zio]) -7/Zion -6/Proximity Caves -6/Factory (discovered 4 exits: *Fac x2 / *Low x2) -6/Lower Caves -6/Lower Caves -6/Data Miner -5/Proximity Caves -5/Factory -5/Upper Caves -5/Upper Caves -5/Warlord -4/Proximity Caves -4/Factory -4/Waste -4/Factory (discovered 3 exits: [*Res x2] / [*Ext]) History --------- Turn | Location | Event 5 | -11/Scrapyard | Discovered new exit (range 16) 120 | -11/Scrapyard | Entered Materials 269 | -10/Materials | Discovered new exit (range 5) 307 | -10/Materials | Build established: Mutant 645 | -10/Materials | Discovered new exit (range 16) 657 | -10/Materials | Central database locked down 868 | -10/Materials | Lost 4 parts (2n1u1w) 943 | -10/Materials | Discovered new exit (range 16) 1186 | -10/Materials | Entered Mines 1275 | -10/Mines | Discovered new exit (range 13) 1374 | -10/Mines | Deemed a non-threat by the Exiles lab entrance 1374 | -10/Mines | Discovered new exit (range 5) 1383 | -10/Mines | Entered Exiles 1383 | -10/Exiles | Found Exiles lab destroyed 1383 | -10/Exiles | Accompanied by 1 ally 1413 | -10/Exiles | Led the pair of lost Derelicts to a safe place 1631 | -10/Exiles | Opened EX-Vault 1645 | -10/Exiles | Found Prototype Ballistic Gun 1818 | -10/Exiles | Learned location of Zion (-7) 2332 | -10/Exiles | Discovered new exit (range 14) 2361 | -10/Exiles | Entered Mines 2371 | -9/Mines | Discovered new exit (range 5) 2399 | -9/Mines | Entered Materials 2399 | -8/Materials | Evolved 4 slots: Propulsion x1, Utility x3 2508 | -8/Materials | Garrison activated, responded to threat 2638 | -8/Materials | Garrison activated, responded to threat 2703 | -8/Materials | Build established: Scavenger-Mutant 2973 | -8/Materials | Lost 3 parts (2u1w) 3888 | -8/Materials | Core integrity fell below 50% 3979 | -8/Materials | Discovered new exit (range 19) 4115 | -8/Materials | Entered Factory 4115 | -7/Factory | Evolved 2 slots: Propulsion x1, Utility x1 4604 | -7/Factory | System corruption reached 10% 4645 | -7/Factory | Lost 3 parts (3u) 4834 | -7/Factory | Lost 3 parts (1p1u1w) 4967 | -7/Factory | Identified exit to Storage 4967 | -7/Factory | Identified exit to Lower Caves 5249 | -7/Factory | Discovered new exit (range 19) 5726 | -7/Factory | Cargo convoy interrupted 5798 | -7/Factory | Lost 6 parts (4n2u) 5811 | -7/Factory | Destroyed 12 combat bots 5858 | -7/Factory | Found Prototype Hackware 6212 | -7/Factory | Entered Lower Caves 6263 | -7/Lower Caves | Learned location of 2 exits from Factory 6314 | -7/Lower Caves | Learned Factory terminal intel 6481 | -7/Lower Caves | Discovered new exit (range 14) 6504 | -7/Lower Caves | Entered another Lower Caves area 6570 | -7/Lower Caves | Discovered new exit (range 16) 6619 | -7/Lower Caves | Learned Factory stockpile data 6914 | -7/Lower Caves | Attracted the attention of an 0b10 checkpoint 7250 | -7/Lower Caves | Discovered new exit (range 12) 7338 | -7/Lower Caves | Entered Zion 7436 | -7/Zion | System corruption cleaned by Quarantine Array 7468 | -7/Zion | Discovered new exit (range 13) 8262 | -7/Zion | Gained Derelict followers 8388 | -7/Zion | Imprinted 8391 | -7/Zion | Declared Zion's savior 8576 | -7/Zion | Visited the Megawrench Repair Shop 8576 | -7/Zion | Megawrench repaired 12 parts 8725 | -7/Zion | Found Relay Coupler [Programmer] 8813 | -7/Zion | Entered Proximity Caves 8813 | -6/Proximity Caves | Accompanied by 8 allies 8828 | -6/Proximity Caves | Spotted B-75 Beast 8847 | -6/Proximity Caves | Allies destroyed B-75 Beast 8892 | -6/Proximity Caves | Core integrity fell below 50% 9454 | -6/Proximity Caves | Discovered new exit (range 10) 9483 | -6/Proximity Caves | Entered Factory 9483 | -6/Factory | Accompanied by 7 allies 9483 | -6/Factory | Evolved 2 slots: Utility x2 9484 | -6/Factory | Identified exit to Factory 9484 | -6/Factory | Identified exit to Lower Caves 9486 | -6/Factory | Loaded intel: 26 terminal locations 9604 | -6/Factory | Discovered exit to Factory (range 9) 10093 | -6/Factory | Retrieved Zion intel report: Unaware Schematics 10094 | -6/Factory | Zion Recon squad teleported in 10601 | -6/Factory | Garrison activated, responded to threat 10642 | -6/Factory | Zion Offense Resupply teleported in 10644 | -6/Factory | Lost 3 parts (1n1u1w) 10932 | -6/Factory | Terminal network hard line cut 11121 | -6/Factory | Lost 4 parts (1p1n2u) 11166 | -6/Factory | Discovered exit to Lower Caves (range 8) 11176 | -6/Factory | Entered Lower Caves 11312 | -6/Lower Caves | Attracted the attention of an 0b10 checkpoint 11348 | -6/Lower Caves | Core integrity fell below 50% 11385 | -6/Lower Caves | Lost 3 parts (2n1w) 11770 | -6/Lower Caves | Learned Factory trap positions 11770 | -6/Lower Caves | Learned Research stockpile data 11770 | -6/Lower Caves | Learned Armory stockpile data 11770 | -6/Lower Caves | Learned Research security intel 11905 | -6/Lower Caves | Destroyed W2-W2B(g) 12798 | -6/Lower Caves | Learned Factory non-interactive machine intel 12822 | -6/Lower Caves | Discovered new exit (range 17) 12990 | -6/Lower Caves | Entered another Lower Caves area 13659 | -6/Lower Caves | Learned Factory terminal intel 13661 | -6/Lower Caves | Learned 12 Factory zone layouts 13669 | -6/Lower Caves | Learned Factory non-interactive machine intel 13821 | -6/Lower Caves | Discovered new exit (range 17) 14286 | -6/Lower Caves | Entered Data Miner 14287 | -6/Data Miner | Discovered new exit (range 6) 14312 | -6/Data Miner | Met Data Miner 14360 | -6/Data Miner | Learned location of Section 7 (-2) 14360 | -6/Data Miner | Acquired the access code to Warlord's prototype stash 14380 | -6/Data Miner | Received God Mode back door access code from Data Miner 14446 | -6/Data Miner | Entered Proximity Caves 14562 | -5/Proximity Caves | Escorted by Enhanced Grunt 14562 | -5/Proximity Caves | Attracted the attention of an 0b10 checkpoint 14615 | -5/Proximity Caves | System corruption reached 10% 14769 | -5/Proximity Caves | Spotted B-75 Beast 14892 | -5/Proximity Caves | Lost 6 parts (3n1u2w) 14909 | -5/Proximity Caves | Core integrity fell below 20% 14951 | -5/Proximity Caves | Lost 5 parts (1p2n2u) 15322 | -5/Proximity Caves | Discovered exit to Factory (range 11) 15352 | -5/Proximity Caves | Learned Factory interactive machine intel 15362 | -5/Proximity Caves | Entered Factory 15362 | -5/Factory | Evolved 2 slots: Power x1, Weapon x1 15363 | -5/Factory | Identified exit to Upper Caves 15364 | -5/Factory | Loaded intel: 72 trap records 15365 | -5/Factory | Loaded intel: 221 non-interactive machine locations 15366 | -5/Factory | Loaded intel: 52 interactive machine locations 15367 | -5/Factory | Loaded intel: 26 terminal locations 15710 | -5/Factory | Retrieved Zion intel report: Prototype Schematics 16097 | -5/Factory | Lost 4 parts (2p1n1w) 16599 | -5/Factory | Terminal network hard line cut 16859 | -5/Factory | Build established: Scavenger-Tank 16927 | -5/Factory | Entered Upper Caves 17125 | -5/Upper Caves | Discovered new exit (range 14) 17182 | -5/Upper Caves | Entered another Upper Caves area 17306 | -5/Upper Caves | Spotted B-75 Beast 17520 | -5/Upper Caves | Destroyed B-75 Beast 17862 | -5/Upper Caves | Learned Factory emergency access door positions 17866 | -5/Upper Caves | Learned Factory terminal intel 18046 | -5/Upper Caves | Attacked by a delusional Derelict stockpiling parts 18213 | -5/Upper Caves | Discovered new exit (range 4) 18249 | -5/Upper Caves | Entered Warlord 18329 | -5/Warlord | System corruption cleaned by Quarantine Array 18757 | -5/Warlord | Found Prototype Special Weapon 18760 | -5/Warlord | Found Prototype Special Weapon 18762 | -5/Warlord | Found Prototype Special Weapon 18765 | -5/Warlord | Found Prototype Special Weapon 18767 | -5/Warlord | Found Prototype Special Weapon 18770 | -5/Warlord | Found Prototype Special Weapon 18843 | -5/Warlord | Rebuked by Warlord 18857 | -5/Warlord | Opened Warlord's prototype stash 18863 | -5/Warlord | Found Prototype Reactor 18863 | -5/Warlord | Identified Vortex Chain Reactor 18868 | -5/Warlord | Warlord's base attacked by MAIN.C 18869 | -5/Warlord | Found Prototype Device 18869 | -5/Warlord | Identified Exp. Phase Shifter 18884 | -5/Warlord | Found Prototype Processor 18884 | -5/Warlord | Identified Exp. Core Analyzer 18888 | -5/Warlord | Found Prototype Device 18888 | -5/Warlord | Identified Thermal Barrier 18899 | -5/Warlord | Found Prototype Hackware 19003 | -5/Warlord | Identified RU-N14's Throwing Claymores v3 (x6) 19019 | -5/Warlord | Found Prototype Launcher 19218 | -5/Warlord | Warlord forces counterattacked 19245 | -5/Warlord | Spotted Striker 19251 | -5/Warlord | Spotted Executioner 19253 | -5/Warlord | Destroyed Executioner 19262 | -5/Warlord | Destroyed Executioner 19283 | -5/Warlord | Destroyed 15 combat bots 19302 | -5/Warlord | Spotted Executioner 19325 | -5/Warlord | Spotted Executioner 19340 | -5/Warlord | Found Prototype Processor 19340 | -5/Warlord | Identified Exp. Targeting Computer 19365 | -5/Warlord | Found Exp. Targeting Computer 19371 | -5/Warlord | Discovered new exit (range 15) 19388 | -5/Warlord | P-70 Sage assimilated allied AA-VPC(b) 19388 | -5/Warlord | Spotted Executioner 19397 | -5/Warlord | P-70 Sage assimilated allied RG-UJ2(g) 19425 | -5/Warlord | Destroyed 13 combat bots 19433 | -5/Warlord | Found Corrupted Exp. Targeting Computer 19439 | -5/Warlord | Found Corrupted Exp. Core Analyzer 19488 | -5/Warlord | Spotted Striker 19493 | -5/Warlord | Spotted Executioner 19512 | -5/Warlord | Destroyed Striker 19514 | -5/Warlord | Core integrity fell below 50% 19516 | -5/Warlord | Destroyed Executioner 19541 | -5/Warlord | Destroyed 13 combat bots 19543 | -5/Warlord | Warlord base infiltrated, sounded retreat 19673 | -5/Warlord | P-80 Master assimilated allied 3C-ZFF(m) 19675 | -5/Warlord | Spotted Striker 19676 | -5/Warlord | Spotted Executioner 19679 | -5/Warlord | Spotted Executioner 19687 | -5/Warlord | Destroyed Executioner 19727 | -5/Warlord | Found Exp. Core Analyzer 19734 | -5/Warlord | Found Prototype Device 19734 | -5/Warlord | Identified Adv. Kinecellerator 19738 | -5/Warlord | Found Exp. Targeting Computer 19746 | -5/Warlord | Found Exp. Core Analyzer 19775 | -5/Warlord | Spotted Striker 19775 | -5/Warlord | Spotted Striker 19782 | -5/Warlord | Spotted Striker 19801 | -5/Warlord | Entered Proximity Caves 19829 | -4/Proximity Caves | Core integrity fell below 20% 19858 | -4/Proximity Caves | Destroyed 7 combat bots 19870 | -4/Proximity Caves | Found Unknown Protection 19904 | -4/Proximity Caves | Spotted B-86 Titan 19994 | -4/Proximity Caves | Build established: Scavenger-Gunner 20151 | -4/Proximity Caves | Attracted the attention of an 0b10 outpost 20160 | -4/Proximity Caves | Identified Imp. Powered Armor 20193 | -4/Proximity Caves | Destroyed 8 combat bots 20302 | -4/Proximity Caves | Learned Research trap positions 20361 | -4/Proximity Caves | Discovered new exit (range 3) 20366 | -4/Proximity Caves | Entered Factory 20366 | -4/Factory | Accompanied by 2 allies 20366 | -4/Factory | Evolved 2 slots: Propulsion x2 20368 | -4/Factory | Loaded intel: 222 non-interactive machine locations 20369 | -4/Factory | Loaded intel: 27 terminal locations 20403 | -4/Factory | Zion Hover Resupply teleported in 20436 | -4/Factory | Lost 3 parts (1p1n1u) 20538 | -4/Factory | Build established: Scavenger-Mutant 20570 | -4/Factory | Zion Explosive Resupply teleported in 20621 | -4/Factory | Spotted B-86 Titan 20928 | -4/Factory | Zion Heavy squad teleported in 20970 | -4/Factory | Discovered new exit (range 16) 20980 | -4/Factory | Build established: Scavenger-Gunner 21007 | -4/Factory | Identified System Mapper 21157 | -4/Factory | Retrieved Zion intel report: Active Garrisons 21158 | -4/Factory | Zion Heavy squad teleported in 21274 | -4/Factory | Spotted B-86 Titan 21366 | -4/Factory | First assault squad dispatched 21385 | -4/Factory | Incoming assault squad redirected 21511 | -4/Factory | Build established: Scavenger-Mutant 21635 | -4/Factory | Retrieved Zion intel report: Trap Installations 21637 | -4/Factory | Zion Heavy squad teleported in 21694 | -4/Factory | Destroyed B-86 Titan 21728 | -4/Factory | Terminal network hard line cut 21995 | -4/Factory | Lost 3 parts (1u2w) 22064 | -4/Factory | Found Prototype Hackware 22147 | -4/Factory | Found Quantum Capacitor 22152 | -4/Factory | Found Powered Armor 22321 | -4/Factory | Sucked down chute 22321 | -4/Factory | Entered Waste 22364 | -4/Waste | Warlord forces began an assault 22399 | -4/Waste | Spotted C-40 Crusher 22399 | -4/Waste | Spotted C-40 Crusher 22405 | -4/Waste | Allies destroyed C-40 Crusher 22413 | -4/Waste | Allies destroyed C-40 Crusher 22427 | -4/Waste | Spotted C-40 Crusher 22433 | -4/Waste | Destroyed C-40 Crusher 22444 | -4/Waste | Spotted C-40 Crusher 22449 | -4/Waste | Destroyed C-40 Crusher 22460 | -4/Waste | Spotted C-40 Crusher 22463 | -4/Waste | Spotted C-40 Crusher 22467 | -4/Waste | Allies destroyed C-40 Crusher 22475 | -4/Waste | Allies destroyed C-40 Crusher 22542 | -4/Waste | Discovered new exit (range 15) 23001 | -4/Waste | Found Adv. Force Booster 23009 | -4/Waste | Entered Factory 23009 | -4/Factory | Accompanied by 11 allies 23035 | -4/Factory | Zion Heavy squad teleported in 23114 | -4/Factory | Discovered new exit (range 16) 23474 | -4/Factory | Retrieved Zion intel report: Emergency Access 23628 | -4/Factory | Incoming investigation squad redirected 23628 | -4/Factory | Retrieved Zion intel report: Prototype Schematics 23629 | -4/Factory | Zion Offense Resupply teleported in 23647 | -4/Factory | P-70 Sage assimilated allied II-UK6(A) 23648 | -4/Factory | Garrison activated, responded to threat 23851 | -4/Factory | Discovered new exit (range 12) 24088 | -4/Factory | Discovered new exit (range 10) 24091 | -4/Factory | System corruption reached 10% 24235 | -4/Factory | Identified Exp. System Shield (x2) 24259 | -4/Factory | First assault squad dispatched 24280 | -4/Factory | Incoming assault squad redirected 24306 | -4/Factory | Lost 4 parts (1p1u2w) 24440 | -4/Factory | Terminal network hard line cut 24562 | -4/Factory | Incoming assault squad redirected 24701 | -4/Factory | Destroyed 9 combat bots 24835 | -4/Factory | Destroyed 8 combat bots 25065 | -4/Factory | Incoming assault squad redirected 25297 | -4/Factory | Spotted Striker 25297 | -4/Factory | Spotted Executioner 25298 | -4/Factory | Cargo convoy interrupted 25302 | -4/Factory | Core integrity fell below 50% 25304 | -4/Factory | High security lockdown imminent 25304 | -4/Factory | Destroyed Striker 25314 | -4/Factory | Lost 3 parts (1n2u) 25330 | -4/Factory | Destroyed 18 combat bots 25333 | -4/Factory | Build established: Hacker-Mutant 25383 | -4/Factory | Core integrity fell below 20% 25384 | -4/Factory | High security lockdown engaged 25400 | -4/Factory | System corruption reached 30% 25430 | -4/Factory | Lost 8 parts (2p2n4w) 25467 | -4/Factory | Destroyed 15 combat bots 25509 | -4/Factory | Destroyed by H-71 Marshal with Heavy Mass Driver Last Messages --------------- 25496_ E-15 Imp destroyed. 25497_ The unstable cave ceiling collapses. 25497_ Neutron Missile Launcher destroyed. 25498_ G-67 Veteran destroyed. 25499_ The unstable cave ceiling collapses. 25500_ System corrupted: Energy discharge (-54). 25502_ The unstable cave ceiling collapses. 25502_ Tesla Rifle crushed. 25502_ P-70 Sage destroyed. 25504_ The unstable cave ceiling collapses. 25504_ Antigrav System crushed. 25504_ ALERT: Assault forces dispatched. 25506_ The unstable cave ceiling collapses. 25506_ Dropped Huge Storage Unit. 25507_ The unstable cave ceiling collapses. 25507_ Dropped Adv. KE Penetrator. 25507_ Dropped Lgt. Antimatter Reactor. 25508_ Dropped Lgt. Ion Engine. 25508_ Dropped Quantum Capacitor. 25509_ Dropped RU-N14's Throwing Claymores v3. Map ----- +----------------------------------------------------+ | ????????? ??????????????????????????????# | | ????????? ?????????#? #?????????????????#"""""" % | | ????????? ????? ?? ? ?=???????????????######### | | ????????? ?? # ?? ? ?????+???????# %%% | | ????????? ?# # # ????????????# ##### | | ????????? # ????????????# #?# | | ????????? # ######???????????# #?#### | | ????????# #???????????# #????? | | ????????# # # #???????????# #????? | | ????????# #? # ##??????????# #????? | | ####????# #??# # "#??????????# #????? | | ???# #??? # # ##?????????# #????? | | ? ??# #????# #?????????# #????? | | ?# #???## # #?????????# #????? | | ### ###?# # * #????????##%##???? | | ### ### # #???????## ##??? | | # # ! #???#???# #??? | | #### ##??# ##?? | | ## ##?# #?? | | # ## # ! # # #?# #?? | | ## # # #### ## ##?# ##?? | | # # # ######% ##??? | | # *% %= % #???? | | # [ * !=[%## #### #???? | | # %# !!!!*## # # ##?#########? | | # |!# [!@!| ## # #??# | | # """" """" #!![# # ###??# """ "" | | #???"" """" ## #|[* # ###????# """ "" | | ????"" """" # ??### ] [ # #?????# """ "" | | ?????????""????????### [### # ##?????# "" " | | ???????????????????## # #######! "" " | | ???????????????????# # % | | ???????????????????## # #??## | | ??????############### # ###### | | ????# # / # + | | ????# * ###### | | ????# [ #??# # # | | ????# = # # #??### # | | ????# =# #???## %# | | ????# #???## # | | ????# # #???# # | | ????# # #???## # | | ????############## #????# # | | ?????????????????# # ########????# # | | ?????????????????### H #???????????# # | | ??????????????????? # ???????????# # | | ???????????????????# # # ??????????# # | | ???????????????????? # ?# ??????????# # | | ??????????????????? # !!! ??? ?????????# # | | ??????????????????? ? %! ??? ????????? # | +----------------------------------------------------+ Best States ------------- Heat Dissipation 85 Energy Generation 59 Energy Capacity 700 Matter Stores 300 Matter Capacity 300 Sight Range 23 Terrain Scan Range 16 Terrain Scan Density 10 Jamming Range 12 Armor Coverage 1650 Resistance: KI 30 Resistance: TH 50 Resistance: EX 25 Core Shielding 30 Weapon Cycling 15 Phase Shifting 20 Evasion (%) 60 Targeting Accuracy 12 Core Analysis 8 Armor Integrity Analysis 30 Recoil Reduction 6 Kinecelleration 50 Salvage Targeting 8 Offensive Hacking 20 Item Schematics ----------------- Huge Storage Unit | -10/Materials | Hacked Mak. Shrapnel Gun | -7/Zion | Archive Matter Compressor | -7/Zion | Archive Drone Bay | -7/Zion | Archive Kinecellerator | -7/Zion | Archive Power Amplifier | -7/Zion | Archive Mak. Leg | -7/Zion | Archive Imp. Shock Absorption System | -7/Zion | Archive Hvy. Plasma Cannon | -7/Zion | Archive Matter Filter | -7/Zion | Archive Core Analyzer | -7/Zion | Archive Thermic Laser | -7/Zion | Archive Power Maul | -7/Zion | Archive Adv. Terrain Scanner | -7/Zion | Archive Mak. Kinetic Plating | -7/Zion | Archive Adv. Drone Bay | -7/Zion | Archive Combat Drone Bay | -6/Data Miner | Free Lgt. Regenerative Plating | -6/Data Miner | Free Enh. Armored Leg | -6/Data Miner | Free Prc. Energy Filter | -6/Data Miner | Free Tiamat Missile Launcher | -6/Data Miner | Free Imp. Linear Gravjet | -6/Data Miner | Free Quantum Capacitor | -6/Data Miner | Free Hvy. Disruptor Cannon | -6/Data Miner | Free Linear Accelerator | -6/Data Miner | Free Dispersion Rifle | -6/Data Miner | Free Rocket Array | -5/Factory | Z-intel Imp. Energy Well | -5/Factory | Z-intel Neutron Cannon | -5/Factory | Z-intel Gravity Neutralizer | -5/Factory | Z-intel Imp. Matter Compressor | -5/Factory | Z-intel Biomechanical Wings | -5/Factory | Z-intel Prc. Rocket Launcher | -5/Factory | Z-intel Mni. Smartbomb Launcher | -5/Factory | Z-intel Lgt. Antimatter Cannon | -4/Factory | Z-intel Exp. Cooling System | -4/Factory | Z-intel Enh. Coil Gun | -4/Factory | Z-intel Exp. Propulsion Shielding | -4/Factory | Z-intel Energy Mantle | -4/Factory | Z-intel Com. Ion Cannon | -4/Factory | Z-intel Exp. Heat Sink | -4/Factory | Z-intel Hvy. Proton Cannon | -4/Factory | Z-intel Exp. Targeting Computer | -4/Factory | Z-intel Hvy. Neutron Cannon | -4/Factory | Z-intel Robot Schematics ------------------ M-14 Sweeper | -7/Zion | Archive G-47 Trooper | -7/Zion | Archive K-01 Serf | -7/Zion | Archive G-73 Enforcer | -7/Zion | Archive T-07 Excavator | -6/Factory | Z-intel S-27 Virus | -6/Factory | Z-intel I-36 Angel | -6/Factory | Z-intel R-10 Processor | -6/Data Miner | Free Y-64 Sentinel | -6/Data Miner | Free B-48 Gladiator | -6/Data Miner | Free W-44 Eye | -6/Data Miner | Free A-27 Freighter | -6/Data Miner | Free Fabricated ------------ Nothing Alien Tech Used ----------------- None Achievements -------------- None Challenges ------------ None Game ------ Seed ImprovedHelicalStripper Manual? 0 Play Time 03:02:05 Cumulative 660.5 hours Start 2022.05.21 @ 14:57:18 End 2022.05.21 @ 20:56:02 Sessions 3 Manual Loads 0 Difficulty Rogue Special Mode None Game No. 435 Rogue 428 Adventurer 0 Explorer 7 Win Type - Total 47 Types 17/5/17/2/0/1/3/1/1 Lore% 87 Gallery% 96 Achievement% 82 Wizard Run 0 Options --------- ASCII 0 Keyboard 0 Movement Numpad Keybinds 0 Fullscreen 1 Font 18/X11Bold Map View 76x50 Tactical HUD 1 Map Filters NONE Filters NONE Steam 1 RUN: 80bb2bb0-4a23-470c-86a3-3ae5eea372ab